bitfinex-derivatives/quotes_ETHF0:USTF0_20260131
["timestamp","ask_amount","ask_price","bid_price","bid_amount"]
[1769888526290,0.00409686,2377.3,2375.7,7.41754293]
[1769888526291,0.00409686,2377.3,2376.0,0.16039604]
[1769888526694,0.00409686,2377.3,2375.7,0.21076]
[1769888526695,0.00409686,2377.3,2376.2,0.16039604]
[1769888526888,0.14810313,2378.0,2376.2,0.16039604]
[1769888527091,4.95405734,2378.6,2376.6,0.15602643]
[1769888527092,0.16197495,2378.4,2376.6,0.15602643]
[1769888527290,4.95405734,2378.6,2376.7,0.15602643]
[1769888527496,0.16197495,2378.5,2376.8,0.15602643]
[1769888527897,0.16197495,2378.3,2376.8,0.00468344]
[1769888528296,0.16197495,2378.3,2376.8,0.16070987]
[1769888529202,0.16197495,2378.0,2376.8,0.00468344]
[1769888529494,0.40082289,2378.4,2376.1,9.26146889]
[1769888529495,0.16197495,2377.6,2376.1,0.15602643]
[1769888529695,0.16197495,2377.6,2375.9,6.25531126]
[1769888529889,0.16197495,2377.6,2376.1,6.41133769]
[1769888530087,0.16197495,2377.6,2376.2,0.15602643]
[1769888530287,0.16197495,2378.1,2376.2,0.15939493]
[1769888530487,0.16197495,2378.1,2376.3,0.15602643]
[1769888530893,0.16197495,2378.1,2376.6,0.15602643]
[1769888531097,0.16197495,2378.1,2376.7,6.41133769]
[1769888531298,0.16197495,2378.1,2376.7,0.15602643]
[1769888531898,0.16197495,2378.1,2376.6,6.25531126]
[1769888532394,3.69582289,2378.4,2376.4,0.15602643]
[1769888532395,3.13244473,2378.4,2376.4,0.15602643]
[1769888532595,4.91308758,2379.1,2376.4,0.15602643]
[1769888532596,0.16255527,2379.2,2377.6,6.25531126]
[1769888532795,0.16255527,2379.8,2378.2,6.25531126]
[1769888533196,0.16255527,2379.8,2378.3,6.25531126]
[1769888533394,0.21033,2380.6,2377.7,12.47344246]
[1769888533395,3.368,2380.5,2378.6,0.00310018]
[1769888533594,0.16628354,2380.5,2378.8,0.00310018]
[1769888533789,0.00430859,2380.5,2379.4,0.00310018]
[1769888534189,0.16197495,2381.3,2379.4,0.00310018]
[1769888534899,0.16255527,2381.2,2379.1,6.25531126]
[1769888535095,0.16255527,2380.9,2378.9,3.367]
[1769888535296,0.16255527,2380.9,2378.9,9.83278126]
[1769888535595,0.16255527,2380.9,2379.0,0.00197999]
[1769888536302,0.00314687,2381.2,2378.7,0.00197999]
[1769888536303,0.16197495,2380.8,2378.7,0.00197999]
[1769888536601,0.16197495,2380.3,2378.7,0.00197999]
[1769888537692,3.52850525,2380.9,2378.7,0.00197999]
[1769888537898,0.16250525,2380.8,2378.7,0.00197999]
[1769888538299,0.16250525,2380.5,2378.6,0.00522903]
[1769888538602,0.16250525,2380.4,2378.6,0.00522903]
[1769888538802,0.16250525,2380.3,2378.6,0.00522903]
[1769888539496,0.16250525,2380.3,2378.7,0.0025991]
[1769888540901,0.16197495,2380.1,2378.7,0.0025991]
[1769888541299,0.16197495,2380.1,2378.6,0.00522903]
[1769888541500,0.16197495,2379.7,2378.6,0.00522903]
[1769888543999,0.21035,2380.4,2378.6,0.00898193]
[1769888544195,0.16197495,2380.2,2378.6,0.00898193]
[1769888544803,0.16197495,2380.1,2378.6,0.00898193]
[1769888545201,0.16197495,2379.7,2378.6,0.00522903]
[1769888545398,2.467,2380.7,2377.0,0.00898193]
[1769888545399,0.16197495,2378.8,2377.0,0.00898193]
[1769888545602,0.16197495,2378.8,2377.5,0.00934582]
[1769888546101,0.16197495,2378.7,2377.3,0.21996582]
[1769888546307,0.16197495,2378.3,2377.3,0.00440091]
[1769888546906,0.16197495,2378.6,2377.3,0.21502091]
[1769888547101,0.16197495,2378.6,2377.3,0.00440091]
[1769888547307,0.16197495,2378.2,2377.3,0.00440091]
[1769888548208,0.16197495,2378.0,2377.3,0.00440091]
[1769888548411,0.16197495,2378.3,2376.7,0.22309442]
[1769888548611,0.16197495,2378.3,2376.8,0.22308442]
[1769888548807,0.16197495,2378.3,2376.9,0.22307442]
[1769888549106,0.16197495,2378.3,2377.0,0.01241442]
[1769888549512,0.16692342,2378.7,2377.1,0.01373336]
[1769888550207,3.27206359,2378.6,2377.1,0.01373336]
[1769888550413,0.16197495,2378.5,2377.1,0.01373336]
[1769888552412,0.16197495,2378.2,2377.0,0.00352805]
[1769888553011,0.16197495,2377.6,2377.0,0.00352805]
[1769888553215,0.16197495,2377.6,2376.0,13.68157153]
[1769888553417,3.11008864,2377.6,2375.9,0.36677643]
[1769888553615,0.21056,2378.0,2375.9,0.36677643]
[1769888553816,3.11008864,2377.8,2375.9,0.36677643]
[1769888554018,3.11008864,2377.6,2376.0,0.15602643]
[1769888554515,0.2106,2377.6,2375.9,0.00456338]
[1769888554818,3.11008864,2377.0,2375.9,0.00456338]
[1769888555113,3.11481306,2377.0,2375.9,0.00456338]
[1769888555419,3.11008864,2376.7,2375.9,0.00456338]
[1769888555610,0.16197495,2376.6,2375.9,0.00456338]
[1769888555817,0.16197495,2376.5,2375.9,0.00456338]
[1769888556016,3.27206359,2376.4,2375.9,0.00456338]
[1769888556310,2.89930864,2375.6,2375.3,0.1]
[1769888556514,0.16197495,2375.9,2375.3,0.1]
[1769888556918,0.15492424,2376.2,2375.3,0.1]
[1769888557220,0.15492424,2376.2,2375.3,0.10533775]
[1769888557515,0.15492424,2376.5,2375.3,0.25776262]
[1769888558214,0.15492424,2376.8,2375.4,0.15242487]
[1769888558414,0.15492424,2376.7,2375.4,0.15242487]
[1769888558614,0.15492424,2376.6,2375.4,0.15242487]
[1769888558811,3.05423288,2376.6,2375.4,0.15242487]
[1769888559021,0.15964866,2377.0,2375.4,0.15242487]
[1769888559218,0.15492424,2376.7,2375.4,0.15242487]
[1769888560515,2.89930864,2376.7,2375.4,0.15242487]
[1769888560715,0.15964866,2377.0,2375.4,0.15242487]
[1769888560919,3.0589573,2377.0,2375.4,0.15242487]
[1769888561120,0.15964866,2377.0,2375.4,0.15242487]
[1769888561321,0.00472442,2377.0,2375.5,0.15592628]
[1769888561516,0.00472442,2377.0,2375.6,6.25531126]
[1769888561821,0.00472442,2377.0,2375.7,6.41123754]
[1769888562022,0.00472442,2377.0,2375.8,0.15592628]
[1769888562422,0.15682193,2377.4,2375.8,0.15592628]
[1769888562622,0.15682193,2377.4,2376.0,0.15592628]
[1769888562818,0.15682193,2377.9,2376.2,0.15592628]
[1769888563019,0.15682193,2377.9,2376.4,0.36662628]
[1769888563217,0.15682193,2377.9,2375.7,7.41754293]
[1769888563218,0.15682193,2377.9,2376.2,6.25531126]
[1769888563417,0.15682193,2377.3,2375.8,0.15592628]
[1769888564019,0.15682193,2376.9,2375.8,0.15592628]
[1769888564414,0.15682193,2377.4,2375.5,0.15592628]
[1769888564615,0.16258223,2377.8,2376.3,0.2107]
[1769888564813,0.16258223,2377.8,2376.5,0.21069]
[1769888565218,0.16258223,2377.8,2376.4,6.25531126]
[1769888565418,0.00490334,2377.9,2376.5,6.25531126]
[1769888565618,0.16738698,2377.9,2376.4,6.25531126]
[1769888565823,0.16248364,2377.7,2376.3,0.21071]
[1769888566018,2.88862143,2377.7,2376.3,0.21071]
[1769888566218,2.88862143,2377.7,2376.3,6.46602126]
[1769888566413,0.00490334,2377.9,2376.4,2.84]
[1769888566718,0.00490334,2377.9,2377.0,0.21064]
[1769888566920,0.00490334,2377.9,2377.0,0.21407502]
[1769888567421,0.00490334,2377.9,2377.0,0.21533927]
[1769888568020,0.00490334,2377.9,2377.0,0.21407502]
[1769888568220,0.16685345,2377.9,2377.0,0.21407502]
[1769888568815,0.00490334,2377.9,2377.1,0.00126425]
[1769888569014,0.00490334,2377.9,2377.2,0.21063]
[1769888569214,2.73104113,2377.9,2377.2,0.21063]
[1769888569517,5.03054258,2378.5,2377.6,0.21059]
[1769888569722,2.88927775,2378.4,2377.6,0.21059]
[1769888569918,2.72613779,2378.2,2377.6,0.21059]
[1769888570126,0.16313996,2378.4,2377.6,0.21059]
[1769888570127,2.72613779,2378.1,2377.6,0.21059]
[1769888570619,0.31386475,2378.1,2377.6,0.21059]
[1769888570820,5.03054258,2378.5,2377.6,0.21059]
[1769888571022,5.33964007,2378.5,2377.5,6.25531126]
[1769888571222,5.03054258,2378.5,2377.7,6.25531126]
[1769888571417,5.03556802,2378.5,2377.6,6.25531126]
[1769888571725,0.16449216,2378.2,2377.4,0.21061]
[1769888571920,0.16449216,2378.0,2377.4,0.21061]
[1769888572426,0.30909749,2377.8,2377.4,0.21061]
[1769888572626,0.16449216,2377.6,2377.2,6.25531126]
[1769888572926,0.16449216,2377.4,2377.0,0.21407502]
[1769888573421,0.21154531,2377.1,2377.0,0.21407502]
[1769888573628,0.11399313,2377.1,2376.7,6.25531126]
[1769888573829,0.01644095,2377.0,2376.6,6.46599126]
[1769888574026,0.01644095,2377.2,2376.7,0.21067]
[1769888574227,0.01644095,2377.2,2376.7,6.46598126]
[1769888574426,0.01644095,2377.1,2376.7,6.46598126]
[1769888574729,0.01644095,2377.1,2376.7,6.46937744]
[1769888574928,0.01644095,2377.0,2376.7,6.46937744]
[1769888575129,0.01644095,2377.1,2376.8,6.25531126]
[1769888575328,0.01644095,2377.2,2376.8,6.25531126]
[1769888575529,0.18197733,2377.7,2376.8,6.25531126]
[1769888575931,0.01644095,2376.9,2376.7,0.21406618]
[1769888576231,0.18197733,2377.3,2376.7,0.21406618]
[1769888576429,0.01644095,2377.0,2376.7,6.46937744]
[1769888576629,0.01644095,2376.9,2376.7,0.21406618]
[1769888576827,0.01644095,2376.8,2376.5,6.25531126]
[1769888577027,0.16553638,2377.3,2376.5,6.25531126]
[1769888577227,0.16553638,2377.3,2376.8,6.25531126]
[1769888577426,0.16553638,2377.3,2376.6,13.88353419]
[1769888577628,0.16553638,2377.3,2376.6,6.46599126]
[1769888577828,0.17082459,2377.3,2376.6,6.47074698]
[1769888578227,0.17082459,2377.3,2376.7,6.25531126]
[1769888578722,0.17082459,2377.3,2376.6,6.26006698]
[1769888578926,0.17082459,2377.3,2376.6,0.00475572]
[1769888579827,0.00528821,2377.3,2376.6,0.00475572]
[1769888580027,5.03054258,2378.5,2376.9,6.25531126]
[1769888580429,5.03054258,2378.5,2377.1,6.25531126]
[1769888580627,5.03054258,2378.5,2377.5,6.25531126]
[1769888580824,5.03054258,2378.5,2377.6,6.25531126]
[1769888581024,4.16030881,2378.5,2378.1,6.41082989]
[1769888581334,3.78731882,2378.5,2378.0,13.67285419]
[1769888581628,2.47311907,2380.3,2378.1,10.29354293]
[1769888581629,3.367,2380.3,2378.1,10.29354293]
[1769888581831,3.367,2380.3,2378.6,6.24934303]
[1769888582034,0.16269844,2379.8,2378.7,6.24934303]
[1769888582425,0.16269844,2379.8,2378.9,6.24934303]
[1769888582731,0.16599273,2379.8,2378.9,6.25425832]
[1769888582927,3.78731882,2379.7,2378.9,6.25425832]
[1769888583329,3.95001726,2379.7,2378.9,0.00491529]
[1769888583532,0.1622187,2379.6,2378.9,0.00491529]
[1769888583729,0.1622187,2379.3,2378.6,6.24934303]
[1769888584030,0.1622187,2378.9,2378.1,7.41754293]
[1769888584232,0.1622187,2378.9,2378.0,6.24934303]
[1769888584532,0.1622187,2378.4,2377.7,6.24934303]
[1769888584738,0.1622187,2378.4,2377.7,0.00481959]
[1769888585035,0.1622187,2379.5,2377.7,6.25416262]
[1769888585234,0.1622187,2379.7,2378.0,6.24934303]
[1769888585433,0.1622187,2379.7,2378.4,6.24934303]
[1769888585735,0.16318052,2379.6,2378.4,6.24934303]
[1769888586036,0.16318052,2379.4,2378.4,6.24934303]
[1769888586433,0.16318052,2379.3,2378.4,6.24934303]
[1769888586743,0.16318052,2379.3,2378.5,6.24934303]
[1769888586932,0.16318052,2379.7,2378.8,6.24934303]
[1769888587131,0.00329429,2379.8,2378.9,6.24934303]
[1769888587328,0.16470259,2380.7,2379.5,7.41754293]
[1769888587533,0.16470259,2381.3,2379.8,6.23117893]
[1769888588025,0.16470259,2380.8,2379.6,6.23117893]
[1769888588225,0.16925741,2380.8,2379.6,6.23557243]
[1769888588435,0.16925741,2380.8,2379.7,6.23117893]
[1769888589435,0.16925741,2380.8,2379.9,6.23117893]
[1769888589832,0.42268242,2382.8,2380.4,0.21035]
[1769888590030,0.16523201,2383.6,2381.7,6.23117893]
[1769888590230,0.16523201,2383.6,2382.0,6.23117893]
[1769888590437,0.16523201,2384.4,2382.3,6.23117893]
[1769888590634,0.16523201,2384.4,2382.5,6.23117893]
[1769888590834,0.16973796,2384.4,2382.6,2.891]
[1769888591633,0.3748531,2384.1,2382.5,0.00331413]
[1769888591831,0.1648231,2384.0,2382.5,0.00331413]
[1769888592839,0.1648231,2384.0,2382.5,0.21347413]
[1769888593038,0.1648231,2384.3,2382.6,0.21015]
[1769888594444,0.1648231,2384.3,2382.5,0.00331413]
[1769888594645,0.1648231,2384.3,2382.8,0.21013]
[1769888594843,0.1648231,2384.3,2382.9,2.884]
[1769888595050,0.16390091,2386.6,2383.0,3.363]
[1769888595344,0.16390091,2386.4,2384.5,0.20998]
[1769888595552,0.16390091,2386.4,2384.6,2.465]
[1769888595744,0.16390091,2386.4,2384.6,2.67498]
[1769888595946,0.16390091,2386.4,2384.7,0.20997]
[1769888596144,0.00410812,2386.4,2384.7,0.0032021]
[1769888596347,0.1647742,2387.6,2384.8,3.32103282]
[1769888596547,0.1647742,2387.6,2386.2,0.20984]
[1769888596748,0.1647742,2387.6,2386.3,3.361]
[1769888596951,0.1647742,2387.6,2385.4,2.465]
[1769888597144,2.47311907,2390.5,2386.1,0.15035011]
[1769888597451,0.21241375,2390.5,2387.0,0.15035011]
[1769888597641,0.21241375,2390.5,2387.4,0.15035011]
[1769888597843,0.21241375,2390.5,2387.2,0.15035011]
[1769888597844,0.41567432,2390.5,2387.2,0.15035011]
[1769888598046,0.41567432,2390.5,2387.1,6.24]
[1769888598047,0.20953,2389.7,2387.1,3.361]
[1769888598347,3.36,2389.7,2387.1,3.51135011]
[1769888598551,3.36,2389.7,2387.1,3.361]
[1769888598755,3.56953,2389.7,2387.1,3.361]
[1769888598946,0.20954,2389.6,2387.1,3.361]
[1769888599148,0.15518641,2389.3,2387.1,3.361]
[1769888599648,0.15518641,2389.3,2387.2,0.15035011]
[1769888599848,0.41567432,2390.5,2387.8,0.15035011]
[1769888600049,0.00295375,2390.5,2388.6,0.15035011]
[1769888600249,3.32103282,2394.5,2390.5,0.15035011]
[1769888600449,0.00295375,2393.9,2390.7,0.35979011]
[1769888600648,0.20913,2394.3,2391.0,0.15035011]
[1769888600848,3.359,2394.5,2391.3,0.15035011]
[1769888601048,3.32103282,2395.7,2391.8,0.15035011]
[1769888601244,0.20907,2394.9,2392.0,0.15035011]
[1769888601450,0.41916474,2394.9,2392.0,0.15035011]
[1769888601649,5.78303282,2395.0,2391.8,0.00330793]
[1769888601650,2.462,2395.0,2392.2,0.15035011]
[1769888601951,0.15518641,2394.9,2392.5,0.15035011]
[1769888602249,0.15518641,2394.9,2392.8,0.15035011]
[1769888602649,0.15518641,2395.6,2393.0,0.15035011]
[1769888602850,0.15518641,2395.3,2393.0,0.15035011]
[1769888603050,0.00402861,2395.7,2392.1,3.358]
[1769888603051,0.15518641,2394.5,2392.5,0.15035011]
[1769888603450,0.15518641,2394.1,2392.5,0.15035011]
[1769888603652,0.15814016,2394.5,2392.5,0.15035011]
[1769888603852,0.15518641,2394.5,2392.5,0.15035011]
[1769888604056,2.47311907,2399.6,2392.1,3.358]
[1769888604057,0.15518641,2395.6,2393.1,0.15035011]
[1769888604256,0.00402861,2395.7,2393.3,0.15035011]
[1769888604548,0.15518641,2397.4,2394.0,0.15035011]
[1769888604749,0.15518641,2397.4,2394.5,0.15035011]
[1769888604956,0.15518641,2396.4,2394.5,0.15035011]
[1769888605255,0.15518641,2395.0,2393.0,0.15035011]
[1769888605450,0.00365445,2395.0,2393.0,0.15529388]
[1769888605648,0.00365445,2395.0,2393.3,0.15035011]
[1769888605852,0.00365445,2395.0,2393.5,0.15035011]
[1769888606151,0.00365445,2395.0,2393.0,0.00494377]
[1769888606152,0.15518641,2394.4,2393.0,0.15529388]
[1769888606346,0.15518641,2394.4,2390.9,0.41871065]
[1769888606347,0.15518641,2393.7,2392.1,0.15035011]
[1769888606544,0.15518641,2393.0,2390.1,0.20949]
[1769888606948,0.15518641,2392.7,2390.1,0.20949]
[1769888607550,0.15518641,2392.7,2390.1,0.00388538]
[1769888607551,0.15845071,2392.7,2390.1,0.00388538]
[1769888607752,0.15845071,2392.7,2390.2,0.20948]
[1769888608253,0.16140446,2392.7,2390.1,0.00388538]
[1769888608449,0.15814016,2392.2,2390.1,0.00388538]
[1769888608652,0.15518641,2392.2,2390.1,0.00388538]
[1769888608861,0.15518641,2391.6,2390.1,0.00388538]
[1769888609257,0.15518641,2390.7,2388.7,3.35]
[1769888609453,0.15518641,2390.1,2388.7,3.35]
[1769888609963,0.15814016,2389.2,2387.5,3.50035011]
[1769888610154,0.00534022,2389.2,2387.6,0.15035011]
[1769888610658,0.15518641,2390.0,2387.8,0.15035011]
[1769888611153,0.15814016,2390.0,2387.8,0.15035011]
[1769888611357,0.15814016,2389.7,2387.8,0.15035011]
[1769888611659,0.16039864,2389.7,2387.8,0.15035011]
[1769888612058,0.15518641,2389.4,2387.5,3.35432058]
[1769888612254,0.15518641,2389.4,2387.6,0.15035011]
[1769888612855,0.16039864,2389.7,2387.6,0.15035011]
[1769888613250,0.00521223,2389.7,2387.6,0.15035011]
[1769888613461,0.15518641,2389.5,2387.6,0.15035011]
[1769888613861,0.15814016,2389.1,2387.5,3.35432058]
[1769888614058,0.15518641,2389.1,2387.5,3.35432058]
[1769888614356,0.15518641,2388.8,2387.5,3.35432058]
[1769888614552,0.15518641,2389.4,2387.6,0.15035011]
[1769888616051,0.15814016,2389.4,2387.6,0.15035011]
[1769888616251,0.15518641,2389.4,2387.7,0.15035011]
[1769888616455,0.00295375,2389.3,2387.7,0.15035011]
[1769888616662,0.15518641,2389.4,2387.8,0.15035011]
[1769888616865,0.15518641,2389.4,2387.9,0.15035011]
[1769888617064,0.15467888,2389.7,2388.1,0.15088789]
[1769888617263,0.14946665,2389.4,2387.6,0.15088789]
[1769888617657,0.00295375,2389.5,2387.6,0.15088789]
[1769888617658,0.1524204,2389.3,2387.6,0.15088789]
[1769888617859,0.14946665,2389.3,2387.6,0.15088789]
[1769888618157,0.1524204,2389.3,2387.6,0.15088789]
[1769888618361,0.1524204,2389.3,2387.7,0.15088789]
[1769888618555,0.15467888,2389.7,2387.9,0.15088789]
[1769888618755,0.14946665,2389.0,2387.5,0.00432058]
[1769888618958,0.14946665,2388.8,2387.5,0.00432058]
[1769888619157,0.20959,2389.1,2387.1,0.1]
[1769888619158,0.14946665,2388.1,2387.1,0.1]
[1769888619554,0.00295375,2387.9,2387.1,0.1]
[1769888619754,0.00295375,2388.0,2387.1,0.1]
[1769888620054,0.00295375,2387.9,2387.1,0.10540722]
[1769888620557,0.15470651,2388.0,2387.1,0.10540722]
[1769888620763,0.00295375,2387.7,2387.1,0.10540722]
[1769888621061,0.15470651,2388.0,2387.1,0.10540722]
[1769888621761,0.15470651,2388.0,2387.1,0.00540722]
[1769888621965,0.15470651,2388.0,2386.4,3.35]
[1769888622363,0.00523986,2388.0,2386.5,0.14789622]
[1769888622565,0.00387303,2388.0,2387.0,0.14789622]
[1769888622866,0.00387303,2388.0,2387.0,0.35765622]
[1769888623060,0.00387303,2388.0,2387.1,0.20976]
[1769888623462,0.00387303,2388.0,2386.5,0.14789622]
[1769888623463,0.15767978,2388.0,2386.5,0.20981]
[1769888623765,0.15767978,2388.0,2386.1,0.14789622]
[1769888623958,0.15767978,2388.0,2386.0,0.20985]
[1769888624363,0.15767978,2388.0,2386.2,0.20984]
[1769888624665,0.15767978,2388.0,2386.2,0.2147574]
[1769888624866,0.15767978,2388.0,2386.3,0.35772622]
[1769888625361,0.15767978,2388.0,2386.5,0.14789622]
[1769888625561,0.00387303,2388.0,2387.3,0.20974]
[1769888626866,0.00387303,2388.0,2386.7,0.35768622]
[1769888627058,0.00387303,2388.0,2386.5,3.351]
[1769888627059,0.15767978,2388.0,2386.5,3.351]
[1769888627259,0.15767978,2388.0,2386.6,0.2098]
[1769888627564,0.15767978,2388.0,2386.6,0.35769622]
[1769888628369,0.15767978,2388.0,2386.7,0.14789622]
[1769888629461,0.00387303,2388.0,2387.2,0.14789622]
[1769888629668,0.00387303,2388.0,2387.1,0.20975]
[1769888629868,0.00387303,2388.0,2386.8,0.35767622]
[1769888630173,0.00387303,2388.0,2386.9,0.35767622]
[1769888630467,0.00387303,2388.0,2387.0,0.14789622]
[1769888630667,0.00387303,2388.0,2387.2,0.14789622]
[1769888630962,0.15380675,2389.6,2387.7,0.14789622]
[1769888631169,0.15380675,2389.6,2386.8,2.837]
[1769888631170,0.15380675,2389.6,2387.9,0.14789622]
[1769888631571,0.15380675,2389.6,2388.0,0.14789622]
[1769888631762,0.15380675,2389.4,2388.0,0.00403611]
[1769888633368,0.15380675,2389.1,2386.8,0.20978]
[1769888633568,0.15380675,2389.1,2386.8,0.35767622]
[1769888634171,0.15380675,2388.9,2386.8,0.35767622]
[1769888634374,0.15380675,2388.7,2386.8,0.36159197]
[1769888634670,0.15380675,2388.7,2386.8,0.00391575]
[1769888635264,0.15380675,2388.5,2386.8,0.00391575]
[1769888636269,0.15380675,2388.4,2386.8,0.00391575]
[1769888636664,0.15380675,2388.2,2386.8,0.00391575]
[1769888636867,0.15380675,2388.1,2386.8,0.00391575]
[1769888637171,0.15380675,2388.0,2386.8,0.00391575]
[1769888637475,0.15380675,2387.8,2386.6,4.81157813]
[1769888637873,0.15380675,2387.8,2386.5,4.81157813]
[1769888638175,0.15380675,2387.8,2386.7,4.81157813]
[1769888638573,0.15724289,2387.8,2386.7,0.00432961]
[1769888640377,0.15724289,2387.8,2386.7,4.81590774]
[1769888640574,0.15724289,2387.8,2386.8,4.81157813]
[1769888640878,0.15724289,2387.8,2386.9,4.81157813]
[1769888641077,2.43891911,2389.0,2386.7,0.00432961]
[1769888641078,0.15380675,2388.7,2387.4,4.95947435]
[1769888641276,0.15380675,2389.1,2387.6,4.95947435]
[1769888641475,0.15380675,2389.1,2387.8,4.81157813]
[1769888641676,0.15380675,2389.1,2387.9,4.81157813]
[1769888641877,0.15380675,2389.1,2387.2,15.16978781]
[1769888642073,0.15380675,2388.9,2387.8,0.14789622]
[1769888642271,0.15380675,2388.9,2387.6,6.06434535]
[1769888642477,0.15380675,2388.7,2387.4,6.06434535]
[1769888642676,0.15380675,2388.7,2387.1,6.06434535]
[1769888642979,0.15886317,2389.1,2387.6,0.14789622]
[1769888643181,0.15886317,2389.1,2387.9,0.14789622]
[1769888643675,0.15886317,2389.1,2388.0,6.21224157]
[1769888643876,0.15886317,2389.1,2388.0,0.14789622]
[1769888644482,0.15380675,2388.8,2388.0,0.14789622]
[1769888644678,0.15380675,2388.8,2387.4,6.06434535]
[1769888645185,0.15380675,2388.8,2387.6,0.14789622]
[1769888645385,0.15380675,2388.8,2387.8,6.06434535]
[1769888645576,0.00505642,2389.1,2387.8,6.21224157]
[1769888645976,0.15886317,2389.1,2387.8,6.21224157]
[1769888646376,0.15886317,2389.1,2387.7,6.06434535]
[1769888646578,0.15886317,2389.1,2387.6,6.06434535]
[1769888647189,0.15886317,2389.1,2387.7,0.15461426]
[1769888647379,0.15886317,2389.1,2387.8,0.15461426]
[1769888647583,0.15886317,2389.1,2387.8,6.21895961]
[1769888647780,0.15886317,2389.1,2387.9,6.06434535]
[1769888648186,0.15886317,2389.1,2388.0,6.06434535]
[1769888648385,0.15886317,2389.1,2387.7,7.41754293]
[1769888648386,0.15886317,2389.1,2387.9,6.06434535]
[1769888648586,0.15886317,2389.1,2387.5,6.06434535]
[1769888649089,0.15886317,2389.1,2387.3,7.41754293]
[1769888649090,0.15886317,2389.1,2387.4,6.06434535]
[1769888649288,0.1591967,2388.8,2387.4,6.21895961]
[1769888649585,0.00505642,2389.1,2388.1,6.21895961]
[1769888649786,0.00505642,2389.1,2388.2,6.21895961]
[1769888650097,0.00505642,2389.1,2388.3,0.15461426]
[1769888650292,0.16425312,2389.1,2388.0,6.06434535]
[1769888650588,0.00505642,2389.1,2387.9,0.15461426]
[1769888650791,0.16425312,2389.1,2388.0,6.06434535]
[1769888651097,0.16425312,2389.1,2388.0,0.15461426]
[1769888652086,0.00505642,2389.1,2388.0,0.15461426]
[1769888652283,0.00505642,2389.1,2388.1,6.21895961]
[1769888652691,0.00505642,2389.1,2388.1,0.15461426]
[1769888653088,0.16425312,2389.1,2387.7,4.75673268]
[1769888653282,6.425,2389.0,2387.7,8.21037752]
[1769888653487,0.16425312,2389.1,2387.8,0.16303777]
[1769888653687,0.00505642,2389.1,2387.8,0.16303777]
[1769888653991,0.00505642,2389.1,2387.9,8.37341529]
[1769888654193,0.00505642,2389.1,2387.9,0.16303777]
[1769888654389,0.00505642,2389.1,2388.0,8.37341529]
[1769888654591,4.40305727,2389.0,2387.3,0.16303777]
[1769888654784,0.2096,2389.0,2387.3,0.16303777]
[1769888654983,0.00505642,2389.1,2387.7,0.16303777]
[1769888655393,0.00505642,2389.1,2387.8,8.37341529]
[1769888655693,0.00505642,2389.1,2387.8,0.16303777]
[1769888655885,0.00505642,2389.1,2388.0,0.1636559]
[1769888656089,0.00505642,2389.1,2388.2,0.1636559]
[1769888656593,0.00505642,2389.1,2388.3,0.1636559]
[1769888656794,0.00505642,2389.1,2387.9,0.1636559]
[1769888657297,0.00505642,2389.1,2388.0,8.21037752]
[1769888657992,0.21463642,2389.1,2387.5,0.16421683]
[1769888658295,4.40380666,2389.0,2387.5,0.16421683]
[1769888658492,0.20959,2389.0,2387.5,8.37459435]
[1769888658998,0.20959,2389.0,2387.6,0.16421683]
[1769888659394,0.00505642,2389.1,2387.8,0.16421683]
[1769888659794,0.00505642,2389.1,2388.1,0.16484308]
[1769888660194,0.00505642,2389.1,2387.6,0.16484308]
[1769888660399,4.19471854,2389.0,2387.6,0.16484308]
[1769888660595,0.20963,2388.6,2387.2,0.16484308]
[1769888660801,5.78362647,2388.6,2387.2,0.16484308]
[1769888661093,5.78362647,2388.6,2386.8,8.21037752]
[1769888661094,4.19498315,2388.5,2387.3,8.3752206]
[1769888661293,4.19498315,2388.5,2387.3,0.16484308]
[1769888661489,4.19498315,2388.4,2386.9,0.16484308]
[1769888661691,4.40463315,2388.3,2387.0,8.21037752]
[1769888661890,4.40629464,2388.2,2387.0,8.21037752]
[1769888662096,4.19663464,2388.1,2386.7,0.00432961]
[1769888662292,0.20966,2388.2,2386.9,8.21037752]
[1769888662293,2.70465647,2388.2,2386.9,8.21037752]
[1769888662490,4.19574414,2388.1,2386.9,8.21037752]
[1769888662999,4.19574414,2388.1,2386.9,8.37362029]
[1769888663193,3.1,2388.0,2386.9,8.37362029]
[1769888663498,3.1,2388.0,2387.0,0.16324277]
[1769888663902,3.1,2388.0,2387.1,8.21037752]
[1769888664300,3.1,2388.0,2386.7,0.00432961]
[1769888664499,2.49499647,2387.9,2386.7,0.00432961]
[1769888664805,2.49499647,2387.9,2385.6,10.33917285]
[1769888664806,0.20975,2387.2,2385.4,0.16435653]
[1769888665109,7.30020844,2387.1,2385.4,0.16435653]
[1769888665403,3.106,2387.1,2385.6,0.16426665]
[1769888665804,3.106,2387.1,2385.8,0.16426665]
[1769888666006,0.1591967,2386.4,2385.0,15.66610595]
[1769888666202,3.26573532,2386.3,2385.0,8.21037752]
[1769888666403,0.15673532,2386.7,2385.0,8.21037752]
[1769888666606,3.109,2386.6,2385.3,4.1864]
[1769888666798,3.26573532,2386.6,2385.1,4.1864]
[1769888667003,3.26573532,2386.5,2385.1,0.00441779]
[1769888667200,0.15673532,2386.4,2385.2,8.21037752]
[1769888667902,0.20979,2386.7,2385.2,8.21037752]
[1769888668103,3.108,2386.6,2385.5,0.15461426]
[1769888668604,3.108,2386.6,2385.6,0.15461426]
[1769888669208,3.50499371,2386.6,2385.6,0.15461426]
[1769888670103,0.00423117,2387.1,2386.2,4.34101426]
[1769888670308,0.00423117,2387.1,2386.3,0.15461426]
[1769888670703,0.40580814,2387.1,2386.3,8.36499178]
[1769888671107,0.36882965,2387.6,2386.6,4.1864]
[1769888671409,3.106,2387.7,2386.7,8.21037752]
[1769888671610,3.106,2387.7,2386.6,0.15461426]
[1769888672107,0.00412947,2387.7,2386.8,0.15461426]
[1769888672308,0.00412947,2387.7,2386.8,0.16003736]
[1769888672506,0.1591967,2389.2,2387.8,0.15461426]
[1769888672706,3.105,2389.3,2388.0,0.15461426]
[1769888673106,3.105,2389.3,2387.4,0.8324]
[1769888673107,0.40539394,2389.3,2388.1,8.36499178]
[1769888673306,0.2320611,2389.4,2388.1,0.15461426]
[1769888673507,0.2320611,2389.4,2388.2,8.21037752]
[1769888674304,0.1591967,2389.2,2387.1,0.15461426]
[1769888674510,0.1591967,2389.1,2387.2,0.15461426]
[1769888674708,0.1591967,2389.1,2387.1,9.04277752]
[1769888674709,0.1591967,2389.1,2387.3,0.15461426]
[1769888675111,0.1591967,2388.6,2387.4,8.21037752]
[1769888675411,0.1591967,2388.4,2387.0,0.15461426]
[1769888675608,0.20964,2388.5,2387.2,0.15461426]
[1769888675815,3.2609597,2388.5,2387.2,0.15461426]
[1769888676004,3.2609597,2388.5,2387.3,8.36499178]
[1769888676209,3.2609597,2388.5,2387.3,0.15461426]
[1769888676210,3.102,2388.5,2387.3,0.15461426]
[1769888676508,0.1589597,2388.4,2387.4,8.21037752]